bitfinex/quotes_BTCUSD_20250601
["timestamp","ask_amount","ask_price","bid_price","bid_amount"]
[1748749091870,0.02882685,104240.0,104230.0,1.08194084]
[1748749092569,0.02882685,104240.0,104230.0,1.10890277]
[1748749092768,0.02882685,104240.0,104230.0,1.09991546]
[1748749092968,0.02882685,104240.0,104230.0,1.08194084]
[1748749093343,0.02867775,104240.0,104230.0,1.08194084]
[1748749093544,0.01908488,104240.0,104230.0,1.08194084]
[1748749093797,0.02867775,104240.0,104230.0,1.08194084]
[1748749093987,0.02867775,104240.0,104230.0,1.10890034]
[1748749094194,0.01908488,104240.0,104230.0,1.08194084]
[1748749094393,0.00949219,104240.0,104230.0,1.09092734]
[1748749094597,0.01908488,104240.0,104230.0,1.08194084]
[1748749094792,0.01908488,104240.0,104230.0,1.09991383]
[1748749095117,0.01908488,104240.0,104230.0,1.08194084]
[1748749095317,0.01908488,104240.0,104230.0,1.09093203]
[1748749095477,0.01908488,104240.0,104230.0,1.08194084]
[1748749095678,0.01908488,104240.0,104230.0,1.09992324]
[1748749095917,0.01908488,104240.0,104230.0,1.08194084]
[1748749096790,0.01908488,104240.0,104230.0,1.09093204]
[1748749097002,0.00949219,104240.0,104230.0,1.08194084]
[1748749097220,0.00949219,104240.0,104230.0,1.09093195]
[1748749097434,0.71601282,104260.0,104240.0,0.21105049]
[1748749097683,0.01918391,104250.0,104240.0,0.53529664]
[1748749098708,0.01918391,104250.0,104240.0,0.54428758]
[1748749098907,0.01918391,104250.0,104240.0,0.56226947]
[1748749099105,0.02877614,104250.0,104240.0,0.53529664]
[1748749099390,0.02877614,104250.0,104240.0,0.54428758]
[1748749100118,0.02877614,104250.0,104240.0,0.56226947]
[1748749100332,0.03277596,104250.0,104240.0,0.54428758]
[1748749101250,0.04236745,104250.0,104240.0,0.54428758]
[1748749101431,0.04236745,104250.0,104240.0,0.57126043]
[1748749101623,0.04236745,104250.0,104240.0,0.54428758]
[1748749102181,0.04236745,104250.0,104240.0,0.55388073]
[1748749102661,0.04236745,104250.0,104240.0,0.57186263]
[1748749102860,0.04236745,104250.0,104240.0,0.55388073]
[1748749103259,0.04236745,104250.0,104240.0,0.58085358]
[1748749103480,0.05180057,104250.0,104240.0,0.55388073]
[1748749103825,0.05180057,104250.0,104240.0,0.58085359]
[1748749104030,0.31988112,104250.0,104240.0,0.22004189]
[1748749104315,0.31688337,104250.0,104240.0,0.57126117]
[1748749104518,0.31688337,104250.0,104240.0,0.55327927]
[1748749104733,0.31688337,104250.0,104240.0,0.54428832]
[1748749104948,0.34878337,104250.0,104240.0,0.55388119]
[1748749105743,0.34878337,104250.0,104240.0,0.57186312]
[1748749106151,0.34878337,104250.0,104240.0,0.55388119]
[1748749106352,0.34878337,104250.0,104240.0,0.57186313]
[1748749106557,0.34878337,104250.0,104240.0,0.55388119]
[1748749107060,0.34878337,104250.0,104240.0,0.54368631]
[1748749107219,0.3391916,104250.0,104240.0,0.53469535]
[1748749107418,0.3391916,104250.0,104240.0,0.55267729]
[1748749107616,0.3391916,104250.0,104240.0,0.56227026]
[1748749107821,0.3391916,104250.0,104240.0,0.54428832]
[1748749108829,0.3391916,104250.0,104240.0,0.55327928]
[1748749109032,0.3391916,104250.0,104240.0,0.56227025]
[1748749109232,0.3391916,104250.0,104240.0,0.54428832]
[1748749109839,0.3391916,104250.0,104240.0,0.55327928]
[1748749110047,0.3391916,104250.0,104240.0,0.55388119]
[1748749110756,0.3391916,104250.0,104240.0,0.57186312]
[1748749110966,0.3391916,104250.0,104240.0,0.57186313]
[1748749111164,0.3391916,104250.0,104240.0,0.55388119]
[1748749111622,0.3391916,104250.0,104240.0,0.55327929]
[1748749111834,0.3391916,104250.0,104240.0,1.63762645]
[1748749111835,0.02,104250.0,104240.0,1.63762645]
[1748749112199,0.004,104250.0,104240.0,1.66392095]
[1748749112592,0.004,104250.0,104240.0,1.6784618]
[1748749112732,0.002,104250.0,104240.0,1.6788618]
[1748749113131,0.00048788,104260.0,104250.0,0.57534235]
[1748749113332,0.00048788,104260.0,104250.0,1.70612951]
[1748749114740,0.00048788,104260.0,104250.0,1.73390332]
[1748749114948,0.00048788,104260.0,104250.0,1.71593376]
[1748749115755,0.00048788,104260.0,104250.0,2.13125376]
[1748749115959,0.00048788,104260.0,104250.0,2.13225376]
[1748749118220,0.00048788,104260.0,104250.0,2.1361819]
[1748749119169,0.00048788,104260.0,104250.0,2.15022293]
[1748749119375,0.04794505,104280.0,104270.0,0.22058006]
[1748749119616,0.04803862,104280.0,104270.0,1.02704079]
[1748749119804,0.04803927,104280.0,104270.0,1.02704079]
[1748749120005,0.04803927,104280.0,104270.0,1.03048222]
[1748749120420,0.05003927,104280.0,104270.0,1.03048222]
[1748749120625,0.05203927,104280.0,104270.0,1.03048222]
[1748749121514,0.05203927,104280.0,104270.0,1.04845125]
[1748749122020,0.05203927,104280.0,104270.0,1.04845123]
[1748749122226,0.05203927,104280.0,104270.0,1.03048222]
[1748749123082,0.05191919,104280.0,104270.0,1.03048222]
[1748749123421,0.05191919,104280.0,104270.0,1.04845123]
[1748749123623,0.08381919,104280.0,104270.0,1.03048222]
[1748749123833,0.08381919,104280.0,104270.0,1.04845127]
[1748749124042,0.08394046,104280.0,104270.0,0.73524222]
[1748749124253,0.08394046,104280.0,104270.0,1.03040222]
[1748749124587,0.0743509,104280.0,104270.0,1.03040222]
[1748749124723,0.0743509,104280.0,104270.0,1.0483713]
[1748749124922,0.0743509,104280.0,104270.0,1.03040222]
[1748749125129,0.0743509,104280.0,104270.0,1.06634038]
[1748749125324,0.0743509,104280.0,104270.0,1.0483713]
[1748749125543,0.0743509,104280.0,104270.0,1.06634037]
[1748749125790,0.06476143,104280.0,104270.0,1.06634036]
[1748749126005,0.06476143,104280.0,104270.0,1.0483713]
[1748749127161,0.06476143,104280.0,104270.0,1.0663399]
[1748749127370,0.06476143,104280.0,104270.0,1.0483713]
[1748749128276,0.06476143,104280.0,104270.0,1.06633993]
[1748749128492,0.06476143,104280.0,104270.0,1.0483713]
[1748749128695,0.06476143,104280.0,104270.0,1.06633994]
[1748749128909,0.06476143,104280.0,104270.0,1.0483713]
[1748749129129,0.06476143,104280.0,104270.0,1.06634004]
[1748749129341,0.06476143,104280.0,104270.0,1.06634008]
[1748749129529,0.06476143,104280.0,104270.0,1.0483713]
[1748749129942,0.06476143,104280.0,104270.0,1.06634011]
[1748749130157,0.06476143,104280.0,104270.0,1.0483713]
[1748749130499,0.06476143,104280.0,104270.0,1.06634026]
[1748749130705,0.06476143,104280.0,104270.0,1.06634057]
[1748749130911,0.06476143,104280.0,104270.0,1.0483713]
[1748749131148,0.06476143,104280.0,104270.0,1.06634067]
[1748749131355,0.06476143,104280.0,104270.0,1.0483713]
[1748749131559,0.06476143,104280.0,104270.0,1.06634053]
[1748749131785,0.06476143,104280.0,104270.0,1.0483713]
[1748749132822,0.06476143,104280.0,104270.0,1.06634216]
[1748749133026,0.06476143,104280.0,104270.0,1.0483713]
[1748749133229,0.06476143,104280.0,104270.0,0.74209551]
[1748749133579,0.29179653,104280.0,104270.0,1.06614231]
[1748749133815,0.29179653,104280.0,104270.0,0.11726481]
[1748749134035,0.27261786,104280.0,104270.0,0.02141051]
[1748749134241,0.27261786,104280.0,104270.0,0.31649051]
[1748749135743,0.27261786,104280.0,104270.0,0.02141051]
[1748749135924,0.27261786,104280.0,104270.0,0.31649051]
[1748749136167,0.27261786,104280.0,104270.0,0.33446694]
[1748749136422,0.24696393,104280.0,104270.0,0.33446694]
[1748749136634,0.23737446,104280.0,104270.0,0.33446694]
[1748749137018,0.23737446,104280.0,104270.0,0.31649051]
[1748749137164,0.23737446,104280.0,104270.0,0.3344664]
[1748749137365,0.23737446,104280.0,104270.0,0.3524421]
[1748749137565,0.2802897,104280.0,104270.0,0.3344664]
[1748749138401,0.2802897,104280.0,104270.0,0.3524424]
[1748749138718,0.2802897,104280.0,104270.0,0.3344664]
[1748749138938,0.2483897,104280.0,104270.0,0.3344664]
[1748749139351,0.20547446,104280.0,104270.0,0.3344664]
[1748749140093,0.20547446,104280.0,104270.0,0.52627612]
[1748749140302,0.02327242,104280.0,104270.0,0.54425211]
[1748749140523,0.02626922,104280.0,104270.0,0.87929307]
[1748749140719,0.02626922,104280.0,104270.0,0.86970305]
[1748749141066,0.02626922,104280.0,104270.0,0.8876781]
[1748749141270,0.02626922,104280.0,104270.0,0.86970305]
[1748749142022,0.02626922,104280.0,104270.0,0.87929307]
[1748749142406,0.02626922,104280.0,104270.0,0.55504664]
[1748749142603,0.03585814,104280.0,104270.0,0.55504664]
[1748749142822,0.0454477,104280.0,104270.0,0.57302181]
[1748749142983,0.0454477,104280.0,104270.0,0.55504664]
[1748749143383,0.23723903,104280.0,104270.0,0.54545672]
[1748749143677,0.23424223,104280.0,104270.0,0.54545672]
[1748749143897,0.23424223,104280.0,104270.0,0.56343236]
[1748749144096,0.27684424,104280.0,104270.0,0.25037681]
[1748749144305,0.27684424,104280.0,104270.0,0.57298281]
[1748749144518,0.27684424,104280.0,104270.0,0.55500702]
[1748749145173,0.27684424,104280.0,104270.0,0.5729829]
[1748749145346,0.26725523,104280.0,104270.0,0.5358266]
[1748749145574,0.25766594,104280.0,104270.0,0.52623612]
[1748749145769,0.25766594,104280.0,104270.0,0.54541699]
[1748749145976,0.25766594,104280.0,104270.0,0.5358266]
[1748749146292,0.24807647,104280.0,104270.0,0.0393864]
[1748749146499,0.24807647,104280.0,104270.0,0.3344264]
[1748749147959,0.20547446,104280.0,104270.0,0.52623612]
[1748749148168,0.1958849,104280.0,104270.0,0.52623612]
[1748749148374,0.1958849,104280.0,104270.0,0.54421213]
[1748749148691,0.1958849,104280.0,104270.0,0.52623612]
[1748749149722,0.1958849,104280.0,104270.0,0.3344264]
[1748749149927,0.23465118,104280.0,104270.0,0.3344264]
[1748749150514,0.23465118,104280.0,104270.0,0.35240335]
[1748749150727,0.23465118,104280.0,104270.0,0.3344264]
[1748749150923,0.23465118,104280.0,104270.0,0.0393864]
[1748749151332,0.23465118,104280.0,104270.0,0.04493432]
[1748749151508,0.23465118,104280.0,104270.0,0.03594497]
[1748749152874,0.33034237,104280.0,104270.0,0.03594497]
[1748749153114,0.33034237,104280.0,104270.0,0.04493443]
[1748749153325,0.33034237,104280.0,104270.0,0.04493442]
[1748749153499,0.33034237,104280.0,104270.0,0.03594497]
[1748749153932,0.33034237,104280.0,104270.0,0.0539239]
[1748749154323,0.33034237,104280.0,104270.0,0.06291336]
[1748749154722,0.33034237,104280.0,104270.0,0.07190282]
[1748749154933,0.33034237,104280.0,104270.0,0.08988175]
[1748749155268,0.33034237,104280.0,104270.0,0.08089229]
[1748749155473,0.33034237,104280.0,104270.0,0.09887122]
[1748749155719,0.33034237,104280.0,104270.0,0.08089229]
[1748749156123,0.33034237,104280.0,104270.0,0.10786068]
[1748749156294,0.33034237,104280.0,104270.0,0.08988175]
[1748749156497,0.33034237,104280.0,104270.0,0.08089229]
[1748749156785,0.33034237,104280.0,104270.0,0.09887135]
[1748749157016,0.33034237,104280.0,104270.0,0.08089229]
[1748749157206,0.33034237,104280.0,104270.0,0.08988182]
[1748749157412,0.33034237,104280.0,104270.0,0.08089229]
[1748749157617,0.33034237,104280.0,104270.0,0.08988195]
[1748749157833,0.33034237,104280.0,104270.0,0.08988202]
[1748749158051,0.33034237,104280.0,104270.0,0.08089229]
[1748749158383,0.33034237,104280.0,104270.0,0.09887208]
[1748749158506,0.33034237,104280.0,104270.0,0.08089229]
[1748749159251,0.34488322,104280.0,104270.0,0.08089229]
[1748749159459,0.68488322,104280.0,104270.0,0.08089229]
[1748749160079,1.06848322,104280.0,104270.0,0.08089229]
[1748749161416,1.09727722,104280.0,104270.0,0.08089229]
[1748749164526,1.11357722,104280.0,104270.0,0.08089229]
[1748749165075,1.51509722,104280.0,104270.0,0.08089229]
[1748749168534,1.22009722,104280.0,104270.0,0.08089229]
[1748749168760,1.09041094,104280.0,104270.0,0.08089229]
[1748749169970,1.18133094,104280.0,104270.0,0.08089229]
[1748749170222,1.16679009,104280.0,104270.0,0.08089229]
[1748749170483,1.13799609,104280.0,104270.0,0.08089229]
[1748749170889,1.16678909,104280.0,104270.0,0.08089229]
[1748749171481,1.25930031,104280.0,104270.0,0.08089229]
[1748749174709,1.24300031,104280.0,104270.0,0.08089229]
[1748749175700,1.25840031,104280.0,104270.0,0.08089229]
[1748749182400,1.25823019,104280.0,104270.0,0.08089229]
[1748749185489,1.24263019,104280.0,104270.0,0.08089229]
[1748749186129,1.22723019,104280.0,104270.0,0.08089229]
[1748749190874,1.24303019,104280.0,104270.0,0.08089229]
[1748749191282,1.25903019,104280.0,104270.0,0.08089229]
[1748749192377,1.16811019,104280.0,104270.0,0.08089229]
[1748749192586,1.07559897,104280.0,104270.0,0.08089229]
[1748749197236,1.14196437,104280.0,104270.0,0.08089229]
[1748749200362,1.14197107,104280.0,104270.0,0.08089229]
[1748749200769,1.14203765,104280.0,104270.0,0.08089229]
[1748749202080,1.14189155,104280.0,104270.0,0.08089229]
[1748749202285,1.23440277,104280.0,104270.0,0.08089229]
[1748749211773,1.21840277,104280.0,104270.0,0.08089229]
[1748749212025,1.2183017,104280.0,104270.0,0.08089229]
[1748749212656,1.2025017,104280.0,104270.0,0.08089229]
[1748749215853,1.2190017,104280.0,104270.0,0.08089229]
[1748749216747,1.2342017,104280.0,104270.0,0.08089229]
[1748749227030,1.2025017,104280.0,104270.0,0.08089229]
[1748749231642,1.20233259,104280.0,104270.0,0.08089229]
[1748749232411,1.2023827,104280.0,104270.0,0.08089229]
[1748749239339,1.2189827,104280.0,104270.0,0.08089229]
[1748749239547,1.2342827,104280.0,104270.0,0.08089229]
[1748749240929,0.58832486,104280.0,104270.0,0.90083531]
[1748749241133,0.58832486,104280.0,104270.0,0.91042561]
[1748749241338,0.58832486,104280.0,104270.0,0.9262257]
[1748749241546,0.58832486,104280.0,104270.0,0.935816]
[1748749241752,0.58832486,104280.0,104270.0,0.9262257]
[1748749241925,0.58832486,104280.0,104270.0,0.62041287]
[1748749242128,0.58832486,104280.0,104270.0,0.62041282]
[1748749242334,0.58832486,104280.0,104270.0,0.6204128]
[1748749242717,0.58832486,104280.0,104270.0,0.60244288]
[1748749243095,0.58832486,104280.0,104270.0,0.62037487]
[1748749243307,0.58832486,104280.0,104270.0,0.62037486]
[1748749243512,0.58832486,104280.0,104270.0,0.60244288]
[1748749243888,0.58832486,104280.0,104270.0,0.62037485]
[1748749244125,0.58832486,104280.0,104270.0,0.60244288]
[1748749244330,0.58832486,104280.0,104270.0,0.94415767]
[1748749244531,0.57873539,104280.0,104270.0,0.91663531]
[1748749244738,0.57873539,104280.0,104270.0,0.90704483]
[1748749245167,0.57873539,104280.0,104270.0,0.58539401]
[1748749245373,0.67124661,104280.0,104270.0,0.56746201]
[1748749246564,0.57873539,104280.0,104270.0,0.56746201]
[1748749246929,0.57873539,104280.0,104270.0,0.37565229]
[1748749247363,0.57873539,104280.0,104270.0,0.39358432]
[1748749247645,0.57873539,104280.0,104270.0,0.37565229]
[1748749248378,0.57873539,104280.0,104270.0,0.39358391]
[1748749248588,0.57873539,104280.0,104270.0,0.37565229]
[1748749249771,0.57873539,104280.0,104270.0,0.39358388]
[1748749249975,0.57873539,104280.0,104270.0,0.39358386]
[1748749250177,0.59383539,104280.0,104270.0,0.37565229]
[1748749250753,0.60963539,104280.0,104270.0,0.37565229]
[1748749250907,0.70214661,104280.0,104270.0,0.37565229]
[1748749252162,0.67124661,104280.0,104270.0,0.45200638]
[1748749252366,0.67124661,104280.0,104270.0,1.77170638]
[1748749252367,0.38694406,104280.0,104270.0,1.77170638]
[1748749252597,0.38694406,104280.0,104270.0,1.78962621]
[1748749252774,0.38694406,104280.0,104270.0,1.77170638]
[1748749252978,0.38694406,104280.0,104270.0,1.7896234]
[1748749253195,0.38494406,104280.0,104270.0,1.77170638]
[1748749253429,0.3836,104280.0,104270.0,1.77170638]
[1748749253644,0.3836,104280.0,104270.0,1.79162355]
[1748749253858,0.3836,104280.0,104270.0,1.77370638]
[1748749254629,0.3836,104280.0,104270.0,1.79271676]
[1748749254825,0.3836,104280.0,104270.0,1.77474768]
[1748749255034,0.3836,104280.0,104270.0,1.69839359]
[1748749256137,0.3836,104280.0,104270.0,1.71630881]
[1748749256333,0.3836,104280.0,104270.0,1.7163088]
[1748749256537,0.3836,104280.0,104270.0,1.69839359]
[1748749256744,0.3836,104280.0,104270.0,1.7163088]
[1748749257147,0.3836,104280.0,104270.0,1.69839359]
[1748749257383,0.3836,104280.0,104270.0,1.71625538]
[1748749257610,0.38005659,104280.0,104270.0,1.71625538]
[1748749257781,0.38005659,104280.0,104270.0,1.71625537]
[1748749257985,0.38005659,104280.0,104270.0,1.71625468]
[1748749258790,0.38005659,104280.0,104270.0,1.69839359]
[1748749259015,0.38005659,104280.0,104270.0,1.71623779]
[1748749259245,0.38005659,104280.0,104270.0,1.71623335]
[1748749260079,0.38005659,104280.0,104270.0,1.69799359]
[1748749260452,0.38005659,104280.0,104270.0,1.7158334]
[1748749260860,0.38005659,104280.0,104270.0,1.69799359]
[1748749261196,0.38005659,104280.0,104270.0,1.71622906]
[1748749261403,0.38005659,104280.0,104270.0,1.71906208]
[1748749261799,0.38005659,104280.0,104270.0,1.71905931]
[1748749262101,0.38005659,104280.0,104270.0,0.77390065]
[1748749262348,0.38005659,104280.0,104270.0,1.71890621]
[1748749262530,0.38005659,104280.0,104270.0,1.70106661]
[1748749262675,0.38005659,104280.0,104270.0,1.71890688]
[1748749263058,0.38005659,104280.0,104270.0,1.42390688]
[1748749263267,0.38005659,104280.0,104270.0,1.71851232]
[1748749263468,0.38005659,104280.0,104270.0,1.71851117]
[1748749263688,0.38005659,104280.0,104270.0,1.71891117]
[1748749263884,0.38005659,104280.0,104270.0,1.70106661]
[1748749264184,0.38005659,104280.0,104270.0,1.71891117]
[1748749264382,0.38005659,104280.0,104270.0,1.70106661]
[1748749264953,0.38005659,104280.0,104270.0,1.68309072]
[1748749265786,0.38005659,104280.0,104270.0,1.38809072]
[1748749266130,0.38005659,104280.0,104270.0,1.68269072]
[1748749271154,0.38005659,104280.0,104270.0,1.70058575]
[1748749271357,0.38005659,104280.0,104270.0,1.68269072]
[1748749271764,0.38005659,104280.0,104270.0,1.70058574]
[1748749271923,0.38005659,104280.0,104270.0,1.68269072]
[1748749272758,0.38005659,104280.0,104270.0,1.70058369]
[1748749272967,0.38005659,104280.0,104270.0,1.7006386]
[1748749273174,0.38005659,104280.0,104270.0,1.68269072]
[1748749273689,0.38005659,104280.0,104270.0,1.70063844]
[1748749273897,0.38005659,104280.0,104270.0,1.68269072]
[1748749274446,0.38005659,104280.0,104270.0,1.38809072]
[1748749274661,0.38005659,104280.0,104270.0,1.70059899]
[1748749274857,0.38005659,104280.0,104270.0,1.68265072]
[1748749275044,0.38005659,104280.0,104270.0,1.65568233]
[1748749275920,0.38005659,104280.0,104270.0,1.67363063]
[1748749276125,0.38005659,104280.0,104270.0,1.65568233]
[1748749276783,0.38005659,104280.0,104270.0,1.37907043]
[1748749277019,0.38005659,104280.0,104270.0,1.65568233]
[1748749277602,0.38005659,104280.0,104270.0,1.36112233]
[1748749277820,0.38005659,104280.0,104270.0,1.65564233]
[1748749277992,0.38005659,104280.0,104270.0,1.67359037]
[1748749278356,0.38005659,104280.0,104270.0,1.69153841]
[1748749278558,0.38005659,104280.0,104270.0,1.67359037]
[1748749281104,0.38005659,104280.0,104270.0,1.69153816]
[1748749281313,0.35705153,104280.0,104270.0,1.69153816]
[1748749281913,0.35705153,104280.0,104270.0,1.70948582]
[1748749282120,0.35705153,104280.0,104270.0,1.69153816]
[1748749282725,0.35705153,104280.0,104270.0,1.70948584]
[1748749282922,0.35705153,104280.0,104270.0,1.70948545]
[1748749283267,0.35705153,104280.0,104270.0,1.70665243]
[1748749283464,0.35705153,104280.0,104270.0,1.68870514]
[1748749283676,0.35705153,104280.0,104270.0,1.70942782]
[1748749283872,0.35705153,104280.0,104270.0,1.68870514]
[1748749284205,0.35406535,104280.0,104270.0,1.70665275]
[1748749284610,0.35406535,104280.0,104270.0,1.68870514]
[1748749285034,0.35406535,104280.0,104270.0,1.68867383]
[1748749285237,0.35406535,104280.0,104270.0,1.67072621]
[1748749285444,0.35406535,104280.0,104270.0,1.68867383]
[1748749285642,0.35406535,104280.0,104270.0,1.67072621]
[1748749285846,0.35406535,104280.0,104270.0,1.68867383]
[1748749286016,0.35406535,104280.0,104270.0,1.67072621]
[1748749287039,0.35406535,104280.0,104270.0,1.68867295]
[1748749287378,0.35406535,104280.0,104270.0,1.67072621]
[1748749287602,0.35406535,104280.0,104270.0,1.37885298]
[1748749287776,0.37046535,104280.0,104270.0,1.65538621]
[1748749287985,0.37046535,104280.0,104270.0,1.67333297]
[1748749288537,0.37046535,104280.0,104270.0,1.67333377]
[1748749288738,0.37046535,104280.0,104270.0,1.67333378]
[1748749288920,0.37046535,104280.0,104270.0,1.65538621]
[1748749289129,0.37041825,104280.0,104270.0,1.65538621]
[1748749289483,0.37037814,104280.0,104270.0,1.65538621]
[1748749290116,0.37037814,104280.0,104270.0,1.6733329]
[1748749290279,0.37037814,104280.0,104270.0,1.65538621]
[1748749290685,0.37037814,104280.0,104270.0,1.6733329]
[1748749291476,0.37037814,104280.0,104270.0,1.67333172]
[1748749292631,0.37037814,104280.0,104270.0,1.6733327]
[1748749293050,0.37037814,104280.0,104270.0,1.65538621]
[1748749293226,0.37037814,104280.0,104270.0,1.67333963]
[1748749294590,0.38617814,104280.0,104270.0,1.6733397]
[1748749294704,0.38617814,104280.0,104270.0,1.65538621]
[1748749295126,0.38617814,104280.0,104270.0,1.67333976]
[1748749295565,0.38617814,104280.0,104270.0,1.65538621]
[1748749295761,0.38617814,104280.0,104270.0,1.67333976]
[1748749295969,0.38617814,104280.0,104270.0,1.65538621]
[1748749297929,0.38617814,104280.0,104270.0,1.65944534]
[1748749298491,0.38617814,104280.0,104270.0,1.67739847]
[1748749298684,0.38617814,104280.0,104270.0,1.67739891]
[1748749298892,0.38617814,104280.0,104270.0,1.36496534]
[1748749299113,0.38617814,104280.0,104270.0,1.75008534]
[1748749299514,0.38617814,104280.0,104270.0,1.76803857]
[1748749300149,0.38617814,104280.0,104270.0,1.75008534]
[1748749300305,0.38617814,104280.0,104270.0,1.76803862]
[1748749300714,0.38617814,104280.0,104270.0,1.76803863]
[1748749300921,0.38617814,104280.0,104270.0,1.75008534]
[1748749301544,0.38617814,104280.0,104270.0,1.76803895]
[1748749301887,0.38617814,104280.0,104270.0,1.75008534]
[1748749302188,0.38617814,104280.0,104270.0,1.76803895]
[1748749302614,0.38617814,104280.0,104270.0,1.78599256]
[1748749302827,0.38617814,104280.0,104270.0,1.7859925]
[1748749303013,0.35167143,104280.0,104270.0,1.76803895]
[1748749303369,0.35167143,104280.0,104270.0,1.78599247]
[1748749303575,0.35167143,104280.0,104270.0,1.76803895]
[1748749303774,0.35167143,104280.0,104270.0,1.78599248]
[1748749303974,0.35167143,104280.0,104270.0,1.76803895]
[1748749304198,0.35167143,104280.0,104270.0,1.78599248]
[1748749304401,0.35167143,104280.0,104270.0,1.76803895]
[1748749304887,0.35167143,104280.0,104270.0,1.78599252]
[1748749305090,0.35167143,104280.0,104270.0,1.76803895]
[1748749306384,0.35167143,104280.0,104270.0,1.78599237]
[1748749306592,0.35167143,104280.0,104270.0,1.76803895]
[1748749308139,0.35167143,104280.0,104270.0,1.78599236]
[1748749308381,0.35167143,104280.0,104270.0,1.76803895]
[1748749309383,0.35167143,104280.0,104270.0,1.78599229]
[1748749309666,0.35167143,104280.0,104270.0,1.78599259]
[1748749310176,0.35167143,104280.0,104270.0,1.76803895]
[1748749311994,0.35167143,104280.0,104270.0,1.47359895]
[1748749312205,0.35167143,104280.0,104270.0,1.76795895]
[1748749312407,0.35167143,104280.0,104270.0,1.78591198]
[1748749312667,0.35167143,104280.0,104270.0,1.76795895]
[1748749312896,0.35167143,104280.0,104270.0,1.78591197]
[1748749313313,0.35167143,104280.0,104270.0,1.76795895]
[1748749313513,0.35167143,104280.0,104270.0,1.78591238]
[1748749313921,0.35167143,104280.0,104270.0,1.76795895]
[1748749314310,0.35167143,104280.0,104270.0,1.12039331]
[1748749314460,0.35167143,104280.0,104270.0,1.76795895]
[1748749315821,0.35167143,104280.0,104270.0,1.78591237]
[1748749316026,0.35167143,104280.0,104270.0,1.76795895]
[1748749316245,0.35167143,104280.0,104270.0,1.78591237]
[1748749316432,0.35167143,104280.0,104270.0,1.76795895]
[1748749318268,0.35167143,104280.0,104270.0,1.78591206]
[1748749318469,0.35167143,104280.0,104270.0,1.76795895]
[1748749318930,0.35167143,104280.0,104270.0,1.78587127]
[1748749319169,0.35167143,104280.0,104270.0,1.76791895]
[1748749319596,0.38683857,104280.0,104270.0,1.35345613]
[1748749319829,0.38683857,104280.0,104270.0,1.38291895]
[1748749320028,0.35167143,104280.0,104270.0,1.40087245]
[1748749320274,0.35167143,104280.0,104270.0,1.69519245]
[1748749320488,0.35167143,104280.0,104270.0,1.71314732]
[1748749320752,0.35167143,104280.0,104270.0,1.69519245]
[1748749320980,0.35167143,104280.0,104270.0,1.67618207]
[1748749321201,0.35167143,104280.0,104270.0,1.78473718]
[1748749321430,0.35167143,104280.0,104270.0,1.76678207]
[1748749322403,0.35167143,104280.0,104270.0,1.78473728]
[1748749322660,0.35167143,104280.0,104270.0,1.76678207]
[1748749323408,0.33527143,104280.0,104270.0,1.78672858]
[1748749323607,0.31947143,104280.0,104270.0,1.78672872]
[1748749323809,0.31947143,104280.0,104270.0,1.7867287]
[1748749323970,0.31947143,104280.0,104270.0,1.4018087]
[1748749324174,0.31947143,104280.0,104270.0,1.7867287]
[1748749324372,0.31947143,104280.0,104270.0,1.13915708]
[1748749324581,0.31947143,104280.0,104270.0,1.78672272]
[1748749324786,0.31947143,104280.0,104270.0,1.7867218]
[1748749326392,0.31947143,104280.0,104270.0,1.78672154]
[1748749326606,0.31947143,104280.0,104270.0,1.76877375]
[1748749326818,0.31947143,104280.0,104270.0,1.78671981]
[1748749327641,0.31947143,104280.0,104270.0,1.80544345]
[1748749327865,0.31947143,104280.0,104270.0,1.8054432]
[1748749328000,0.31947143,104280.0,104270.0,1.80544317]
[1748749328189,0.31947143,104280.0,104270.0,1.80544263]
[1748749328401,0.33557143,104280.0,104270.0,1.80544263]
[1748749328650,0.33557143,104280.0,104270.0,1.82338795]
[1748749328899,0.35067143,104280.0,104270.0,1.82338795]
[1748749329276,0.35067143,104280.0,104270.0,1.82338837]
[1748749329682,0.35067143,104280.0,104270.0,1.82338864]
[1748749329886,0.35067143,104280.0,104270.0,1.80544267]
[1748749330965,0.33557143,104280.0,104270.0,1.81998352]
[1748749331192,0.33557143,104280.0,104270.0,2.21173013]
[1748749331193,0.31947143,104280.0,104270.0,2.21173013]
[1748749331390,0.31947143,104280.0,104270.0,2.19418571]
[1748749331962,0.31947143,104280.0,104270.0,2.19218571]
[1748749332358,0.31947143,104280.0,104270.0,2.19818571]
[1748749332761,0.31947143,104280.0,104270.0,2.21612599]
[1748749332971,0.31947143,104280.0,104270.0,2.19818571]
[1748749333185,0.31947143,104280.0,104270.0,2.21612597]
[1748749333586,0.31947143,104280.0,104270.0,2.19778571]
[1748749333786,0.31947143,104280.0,104270.0,2.22072598]
[1748749334045,0.31947143,104280.0,104270.0,2.20462598]
[1748749334740,0.0155053,104320.0,104310.0,0.22049548]
[1748749334940,0.02509036,104320.0,104310.0,0.9344126]
[1748749335151,0.04430988,104320.0,104310.0,0.9523294]
[1748749335470,0.04430979,104320.0,104310.0,0.9523294]
[1748749335761,0.04430979,104320.0,104310.0,0.95232919]
[1748749335961,0.04530979,104320.0,104310.0,0.9344126]
[1748749336744,0.04530979,104320.0,104310.0,0.95232965]
[1748749336903,0.04530979,104320.0,104310.0,0.9344126]
[1748749337117,0.0558954,104320.0,104310.0,0.9344126]
[1748749337338,0.04630979,104320.0,104310.0,0.9344126]
[1748749337541,0.04630979,104320.0,104310.0,0.95232951]
[1748749337749,0.04630979,104320.0,104310.0,0.9344126]
[1748749337966,0.0558954,104320.0,104310.0,0.95232961]
[1748749338310,0.0558954,104320.0,104310.0,0.9344126]
[1748749338515,0.01755406,104320.0,104310.0,0.95232962]
[1748749338717,0.01755406,104320.0,104310.0,0.9344126]
[1748749338924,0.04333912,104320.0,104310.0,0.95232714]
[1748749339120,0.05943912,104320.0,104310.0,0.9344126]
[1748749340105,0.04985406,104320.0,104310.0,0.95232364]
[1748749340322,0.05943912,104320.0,104310.0,0.9344126]
[1748749341541,0.05943921,104320.0,104310.0,0.9344126]
[1748749341901,0.05943921,104320.0,104310.0,0.95232391]
[1748749342107,0.05943912,104320.0,104310.0,0.9344126]
[1748749342305,0.05943912,104320.0,104310.0,0.95232378]
[1748749342505,0.05943912,104320.0,104310.0,0.9344126]
[1748749342712,0.06902436,104320.0,104310.0,0.95232373]
[1748749343138,0.06902436,104320.0,104310.0,0.9344126]
[1748749343339,0.06902436,104320.0,104310.0,0.95232373]
[1748749343545,0.04985406,104320.0,104310.0,0.31634978]
[1748749343876,0.0594393,104320.0,104310.0,0.95228375]
[1748749344037,0.04985406,104320.0,104310.0,0.95228375]
[1748749344232,0.05943921,104320.0,104310.0,0.95225563]
[1748749344689,0.05943912,104320.0,104310.0,0.9343726]
[1748749344837,0.04985406,104320.0,104310.0,0.9343726]
[1748749345258,0.05943921,104320.0,104310.0,0.9343726]
[1748749345459,0.05943921,104320.0,104310.0,0.95225582]
[1748749345659,0.05943921,104320.0,104310.0,0.95225581]
[1748749345890,0.05943921,104320.0,104310.0,0.9343726]
[1748749346430,0.04985406,104320.0,104310.0,0.9522558]
[1748749346635,0.05943921,104320.0,104310.0,0.9343726]